bitfinex/quotes_SOLUSD_20250307
["timestamp","ask_amount","ask_price","bid_price","bid_amount"]
[1741370395305,47.60935398,143.71,143.63,11.1]
[1741370395530,47.60935398,143.68,143.63,11.1]
[1741370395745,81.5,143.7,143.64,47.60935398]
[1741370396042,47.60935398,143.72,143.65,47.60935398]
[1741370396242,2.0872,143.73,143.66,47.60935398]
[1741370396414,47.60935398,143.74,143.67,48.65285371]
[1741370396609,81.5,143.76,143.7,47.60935398]
[1741370396948,81.5,143.76,143.69,47.60935398]
[1741370396949,131.19615398,143.76,143.69,47.60935398]
[1741370397444,81.5,143.76,143.71,47.60935398]
[1741370397644,81.5,143.76,143.7,47.60935398]
[1741370397941,131.19615398,143.76,143.7,47.60935398]
[1741370398155,131.19615398,143.76,143.69,48.65271327]
[1741370398359,47.60935398,143.73,143.64,305.7037]
[1741370398536,47.60935398,143.73,143.67,47.60935398]
[1741370398938,49.69645398,143.74,143.68,47.60935398]
[1741370399149,47.60935398,143.72,143.67,1.04346064]
[1741370399438,47.60935398,143.71,143.64,209.20935398]
[1741370399651,47.60935398,143.71,143.65,47.60935398]
[1741370399856,81.5,143.72,143.66,47.60935398]
[1741370400173,47.60935398,143.75,143.69,47.60935398]
[1741370400463,83.5863,143.79,143.74,47.60935398]
[1741370400644,131.19565398,143.79,143.72,10.98]
[1741370400964,47.60935398,143.73,143.67,10.98]
[1741370401161,47.60935398,143.7,143.67,10.98]
[1741370401334,81.5,143.76,143.61,47.74369455]
[1741370401537,3.8805,143.74,143.59,55.66639455]
[1741370401849,3.8805,143.74,143.6,1.0440364]
[1741370401850,81.5,143.73,143.6,1.0440364]
[1741370402052,81.5,143.72,143.68,47.74369455]
[1741370402349,81.5,143.72,143.66,11.0]
[1741370402555,7.3032,143.77,143.61,10.98]
[1741370402556,81.5,143.71,143.61,10.98]
[1741370402737,4.0271,143.69,143.55,47.77669455]
[1741370402937,81.5,143.68,143.55,0.033]
[1741370403155,7.3083,143.67,143.55,47.77669455]
[1741370403328,2.0881,143.67,143.55,0.033]
[1741370403536,2.0881,143.67,143.58,47.74369455]
[1741370403537,81.5,143.66,143.58,47.74369455]
[1741370403759,81.5,143.65,143.55,1.0773396]
[1741370403970,81.5,143.64,143.55,0.033]
[1741370404176,81.5,143.68,143.59,47.74369455]
[1741370404468,82.54671691,143.67,143.55,0.033]
[1741370404668,81.5,143.66,143.55,0.033]
[1741370404870,82.54671691,143.65,143.5,0.033]
[1741370405057,111.1082,143.64,143.5,0.033]
[1741370405238,82.54671691,143.63,143.5,0.033]
[1741370405438,1.8364,143.61,143.38,150.673]
[1741370405637,82.54671691,143.6,143.38,0.033]
[1741370405857,81.5,143.59,143.38,47.77669455]
[1741370406058,82.54671691,143.58,143.45,47.74369455]
[1741370406263,82.54671691,143.58,143.39,1.04552317]
[1741370406264,82.54671691,143.57,143.39,1.04552317]
[1741370406464,81.5,143.56,143.38,0.033]
[1741370406647,7.7987,143.54,143.38,0.033]
[1741370406956,17.7687,143.51,143.38,0.033]
[1741370407158,82.54671691,143.5,143.38,0.033]
[1741370407339,81.5,143.49,143.38,0.033]
[1741370407541,81.5,143.48,143.4,47.74369455]
[1741370407747,3.9493,143.52,143.38,1.07879613]
[1741370407748,81.5,143.52,143.41,1.04546319]
[1741370408051,82.54671691,143.51,143.38,0.033]
[1741370408260,81.5,143.5,143.38,0.033]
[1741370408458,82.54671691,143.49,143.38,0.033]
[1741370408660,81.5,143.49,143.38,0.033]
[1741370409168,3.13751691,143.48,143.38,0.033]
[1741370409350,81.5,143.47,143.38,0.033]
[1741370409663,97.60521691,143.46,143.38,0.033]
[1741370410052,1.7704,143.44,143.26,1.04628496]
[1741370410250,82.54671691,143.43,143.24,56.29560904]
[1741370410439,81.5,143.42,143.24,8.55191449]
[1741370410660,1.04671691,143.41,143.24,47.74369455]
[1741370410857,81.5,143.4,143.24,47.74369455]
[1741370411060,7.3231,143.38,143.23,6.9817]
[1741370411262,81.5,143.37,143.28,47.74369455]
[1741370411562,81.5,143.37,143.29,47.74369455]
[1741370411761,81.5,143.37,143.3,47.74369455]
[1741370411961,81.5,143.43,143.32,47.74369455]
[1741370412158,81.5,143.42,143.31,1.04618119]
[1741370412462,81.5,143.42,143.34,47.74369455]
[1741370412661,81.5,143.42,143.31,312.0]
[1741370412864,81.5,143.41,143.24,47.74369455]
[1741370413048,2.0921,143.39,143.22,6.9822]
[1741370413371,2.0921,143.39,143.23,47.74369455]
[1741370413372,1.04671691,143.38,143.23,47.74369455]
[1741370413662,81.5,143.37,143.27,47.74369455]
[1741370413847,81.5,143.36,143.27,47.74369455]
[1741370414249,81.5,143.36,143.28,48.79013404]
[1741370414449,81.5,143.36,143.3,47.74369455]
[1741370414651,83.5919,143.41,143.28,12.14643949]
[1741370414949,81.5,143.4,143.33,47.74369455]
[1741370415369,81.5,143.45,143.33,138.74589931]
[1741370415669,81.5,143.45,143.41,47.74369455]
[1741370415867,82.54671691,143.44,143.24,6.9812]
[1741370416071,7.7802,143.42,143.24,47.74369455]
[1741370416257,1.04671691,143.41,143.28,47.74369455]
[1741370416457,81.5,143.4,143.31,47.74369455]
[1741370416657,81.5,143.4,143.33,47.74369455]
[1741370416856,81.5,143.39,143.23,32.158]
[1741370417166,81.5,143.38,143.29,47.74369455]
[1741370417368,81.5,143.37,143.25,6.9808]
[1741370417553,81.5,143.36,143.3,47.74369455]
[1741370417746,2.0919,143.41,143.3,47.74369455]
[1741370417943,81.5,143.42,143.26,1.04637663]
[1741370417944,81.5,143.4,143.33,47.74369455]
[1741370418148,150.94,143.43,143.31,1.04617553]
[1741370418149,81.5,143.39,143.31,1.04617553]
[1741370418348,81.5,143.38,143.31,47.74369455]
[1741370418574,81.5,143.37,143.29,12.34622125]
[1741370418745,81.5,143.36,143.3,47.74369455]
[1741370418945,81.5,143.36,143.32,47.74369455]
[1741370419148,81.5,143.36,143.32,47.24369455]
[1741370419372,81.5,143.36,143.29,11.3]
[1741370419373,81.5,143.35,143.29,12.34616306]
[1741370419670,81.5,143.42,143.32,47.74369455]
[1741370419982,81.5,143.41,143.34,47.74369455]
[1741370420151,81.5,143.4,143.3,1.04592682]
[1741370420352,81.5,143.4,143.29,59.04369455]
[1741370420551,81.5,143.39,143.29,11.3]
[1741370420853,81.5,143.38,143.29,59.04369455]
[1741370421170,81.5,143.38,143.29,47.74369455]
[1741370421358,81.5,143.38,143.32,47.74369455]
[1741370421557,81.5,143.4,143.37,47.74369455]
[1741370421771,2.0908,143.48,143.39,47.74369455]
[1741370421967,81.5,143.47,143.41,47.74369455]
[1741370422169,81.5,143.47,143.45,47.74369455]
[1741370422364,81.5,143.51,143.46,47.74369455]
[1741370422566,151.0,143.59,143.46,47.74369455]
[1741370422567,81.5,143.53,143.48,47.74369455]
[1741370422763,81.5,143.55,143.49,47.74369455]
[1741370422965,81.5,143.54,143.45,59.04369455]
[1741370423149,7.316,143.52,143.39,12.36490823]
[1741370423350,81.5,143.51,143.44,47.74369455]
[1741370423659,81.5,143.57,143.46,47.74369455]
[1741370423860,81.5,143.57,143.53,47.74369455]
[1741370424065,81.5,143.64,143.47,150.10499965]
[1741370424369,83.5887,143.63,143.5,47.74369455]
[1741370424676,81.5,143.62,143.51,47.74369455]
[1741370424853,81.5,143.61,143.55,47.74369455]
[1741370425053,81.5,143.6,143.55,47.74369455]
[1741370425253,81.5,143.6,143.57,47.74369455]
[1741370425474,2.0881,143.67,143.58,47.74369455]
[1741370425676,81.5,143.66,143.6,47.74369455]
[1741370425884,81.5,143.66,143.59,47.74369455]
[1741370426060,5.05741691,143.73,143.63,47.74369455]
[1741370426061,81.5,143.69,143.63,47.74369455]
[1741370426263,81.5,143.72,143.66,47.74369455]
[1741370426490,0.03,143.73,143.64,48.78755854]
[1741370426663,0.03,143.73,143.7,47.74369455]
[1741370426856,0.03,143.73,143.66,1.04363683]
[1741370427059,0.03,143.73,143.72,47.74369455]
[1741370427559,0.03,143.73,143.72,48.78681966]
[1741370427770,0.03,143.73,143.72,1.04312511]
[1741370428131,0.03,143.73,143.72,59.10369455]
[1741370428523,0.03,143.78,143.72,196.80369455]
[1741370428724,0.03,143.78,143.77,47.74369455]
[1741370428902,0.03,143.78,143.76,47.74369455]
[1741370429100,0.03,143.78,143.77,48.78642564]
[1741370429305,0.03,143.78,143.77,1.04273109]
[1741370429606,0.03,143.78,143.77,48.78642564]
[1741370429798,0.03,143.94,143.79,7.6895]
[1741370430002,0.03,143.94,143.87,47.74369455]
[1741370430194,0.03,143.94,143.87,60.14564239]
[1741370430395,2.0848,143.9,143.87,1.04194784]
[1741370430625,0.03,143.94,143.85,11.36]
[1741370430796,2.0846,143.92,143.85,59.10369455]
[1741370430997,0.03,143.94,143.86,1.04216405]
[1741370431223,81.5,143.93,143.81,1.04208279]
[1741370431434,47.64295052,143.83,143.76,11.36]
[1741370431596,47.64295052,143.83,143.76,60.04571967]
[1741370431814,47.64295052,143.82,143.76,60.04571967]
[1741370432010,81.5,143.87,143.76,60.04571967]
[1741370432011,81.5,143.87,143.76,1.04276915]
[1741370432216,47.64295052,143.79,143.72,12.40277291]
[1741370432416,47.64295052,143.78,143.72,1.04316329]
[1741370432717,47.64295052,143.78,143.72,48.68611381]
[1741370432940,81.5,143.84,143.71,158.2913]
[1741370433122,49.73015052,143.74,143.7,11.36]
[1741370433450,10.4299,143.82,143.7,11.36]
[1741370433451,81.5,143.77,143.7,11.36]
[1741370433644,81.5,143.81,143.7,11.36]
[1741370433966,47.64295052,143.73,143.7,11.36]
[1741370434245,47.64295052,143.78,143.64,48.68631376]
[1741370434246,47.64295052,143.71,143.64,48.68631376]
[1741370434451,81.5,143.76,143.66,47.64295052]
[1741370434659,81.5,143.76,143.67,1.04343171]
[1741370434822,47.64295052,143.73,143.65,1.04342908]
[1741370435023,47.64295052,143.71,143.64,59.00295052]
[1741370435256,81.5,143.75,143.68,47.64295052]
[1741370435568,7.3012,143.81,143.65,1.04331663]
[1741370435753,81.0,143.8,143.65,1.04331663]
[1741370435940,0.03,143.88,143.73,312.0]
[1741370435941,81.0,143.85,143.73,312.0]
[1741370436146,47.64295052,143.8,143.73,11.4]
[1741370436334,81.0,143.84,143.74,47.64295052]
[1741370436537,81.0,143.84,143.73,11.4]
[1741370436852,81.0,143.84,143.74,1.04311923]
[1741370437054,47.64295052,143.83,143.76,47.64295052]
[1741370437253,2.0857,143.83,143.74,48.68606975]
[1741370437461,47.64295052,143.8,143.73,19.40035927]
[1741370437749,81.0,143.82,143.77,47.64295052]
[1741370437953,47.64295052,143.83,143.76,47.64295052]
[1741370438322,0.03,143.82,143.78,47.64295052]
[1741370438526,0.03,143.82,143.77,47.64295052]
[1741370438731,0.03,143.82,143.78,48.68578166]
[1741370438938,0.03,143.82,143.8,47.64295052]
[1741370439147,0.03,143.82,143.77,47.64295052]
[1741370439364,81.0,143.81,143.74,1.04252669]
[1741370439664,47.64295052,143.75,143.68,55.64599809]
[1741370439833,47.64295052,143.8,143.73,47.64295052]
[1741370440032,47.64295052,143.81,143.74,47.64295052]
[1741370440266,47.64295052,143.76,143.69,1.04298308]
[1741370440575,47.64295052,143.75,143.69,1.04334599]
[1741370440730,81.0,143.79,143.72,47.64295052]
[1741370440933,47.64295052,143.81,143.74,47.64295052]
[1741370441231,47.64295052,143.79,143.73,48.68581775]
[1741370441454,47.64295052,143.78,143.72,6.9576]
[1741370441665,47.64295052,143.79,143.72,55.64365221]
[1741370441856,47.64295052,143.78,143.71,47.64295052]
[1741370442154,47.64295052,143.78,143.72,1.04321711]
[1741370442360,47.64295052,143.78,143.71,48.68606512]
[1741370442562,47.64295052,143.79,143.72,47.64295052]
[1741370442927,0.03,143.82,143.73,1.04305274]
[1741370443133,0.03,143.82,143.81,47.64295052]
[1741370443329,0.03,143.82,143.81,65.93655052]
[1741370443637,0.03,143.88,143.81,222.06281834]
[1741370443974,0.03,143.88,143.86,47.64295052]
[1741370444133,0.03,143.88,143.87,1.04204238]
[1741370444529,0.03,143.88,143.86,1.04205926]
[1741370444735,0.03,143.88,143.87,47.64295052]
[1741370445041,0.03,143.88,143.86,1.04205926]
[1741370445245,128.64295052,143.87,143.73,18.2974]
[1741370445440,47.64295052,143.79,143.73,12.38280519]
[1741370445630,83.0853,143.86,143.73,12.38280519]
[1741370445631,47.64295052,143.78,143.73,12.38280519]
[1741370445828,47.64295052,143.78,143.73,11.34]
[1741370446028,81.0,143.84,143.7,7.9893]
[1741370446029,47.64295052,143.76,143.7,7.9893]
[1741370446233,81.0,143.83,143.74,47.64295052]
[1741370446456,128.64295052,143.83,143.76,47.64295052]
[1741370446870,2.0853,143.86,143.78,47.64295052]
[1741370447073,49.72825052,143.86,143.79,47.64295052]
[1741370447246,47.64295052,143.83,143.76,48.68565577]
[1741370447452,47.64295052,143.82,143.75,12.36273665]
[1741370447651,49.72875052,143.83,143.76,47.64295052]
[1741370447955,49.72875052,143.83,143.75,19.31903665]
[1741370447956,47.64295052,143.81,143.75,12.36273665]
[1741370448155,2.0858,143.83,143.75,60.00568717]
[1741370448471,47.64295052,143.82,143.75,12.36273665]
[1741370448678,81.0,143.9,143.75,157.01923665]
[1741370448881,49.72815052,143.87,143.8,47.64295052]
[1741370449054,47.64295052,143.84,143.75,467.9765]
[1741370449251,88.2982,143.87,143.76,47.64295052]
[1741370449471,47.64295052,143.83,143.77,1.04267062]
[1741370449676,47.64295052,143.84,143.78,47.64295052]
[1741370449985,88.2982,143.87,143.75,11.32]
[1741370450181,47.64295052,143.77,143.75,0.033]
[1741370450385,81.0,143.85,143.75,0.033]
[1741370450557,11.26,143.83,143.75,0.033]
[1741370450759,47.64295052,143.76,143.75,0.033]
[1741370451292,47.64295052,143.76,143.75,0.0001]
[1741370451593,49.72975052,143.76,143.65,0.033]
[1741370451755,49.72975052,143.76,143.65,47.67595052]
[1741370451756,81.5,143.75,143.65,47.67595052]
[1741370451958,47.64295052,143.72,143.65,0.033]
[1741370452265,47.64295052,143.71,143.65,0.033]
[1741370452455,2.0868,143.76,143.66,47.64295052]
[1741370452655,47.64295052,143.72,143.66,47.64295052]
[1741370452851,47.64295052,143.75,143.68,47.64295052]
[1741370453055,47.64295052,143.75,143.67,1.04349872]
[1741370453056,47.64295052,143.75,143.69,58.84295052]
[1741370453357,47.64295052,143.71,143.69,11.2]
[1741370453555,47.64295052,143.7,143.69,11.2]
[1741370453759,81.5,143.76,143.69,11.2]
[1741370454059,47.64295052,143.72,143.65,6.9939]
[1741370454264,47.64295052,143.71,143.65,54.63685052]
[1741370454473,47.64295052,143.78,143.68,47.64295052]
[1741370454674,47.64295052,143.76,143.69,48.68629316]
[1741370454987,81.5,143.8,143.65,162.0973]
[1741370454988,81.5,143.75,143.65,0.033]
[1741370455151,81.5,143.74,143.65,0.033]
[1741370455352,2.0873,143.72,143.65,0.033]
[1741370455556,81.5,143.71,143.65,0.033]
[1741370455969,81.5,143.71,143.65,47.67595052]
[1741370456176,81.5,143.71,143.65,0.033]
[1741370456483,47.64295052,143.75,143.68,47.64295052]
[1741370456701,81.5,143.76,143.68,47.64295052]
[1741370456702,81.5,143.76,143.68,11.28]
[1741370456988,83.586,143.81,143.69,1.04345487]
[1741370457191,47.64295052,143.76,143.69,1.04330658]
[1741370457487,47.64295052,143.76,143.7,6.9589]
[1741370457689,81.5,143.8,143.7,6.9589]
[1741370457690,47.64295052,143.77,143.7,6.9589]
[1741370457996,47.64295052,143.78,143.71,47.64295052]
[1741370458160,47.64295052,143.8,143.73,47.64295052]
[1741370458362,47.64295052,143.8,143.73,48.68598757]
[1741370458856,83.5856,143.84,143.73,48.68598757]
[1741370458857,47.64295052,143.83,143.76,47.64295052]
[1741370459059,47.64295052,143.83,143.76,11.26]
[1741370459288,81.5,143.84,143.76,11.26]
[1741370459289,47.64295052,143.84,143.76,12.30283898]
[1741370459494,47.64295052,143.82,143.76,11.26]
[1741370459690,47.64295052,143.85,143.78,47.64295052]
[1741370459988,47.64295052,143.85,143.79,47.64295052]
[1741370460155,81.5,143.84,143.76,19.25868237]
[1741370460356,81.5,143.84,143.8,47.64295052]
[1741370460598,81.5,143.86,143.83,47.64295052]
[1741370460761,0.03,143.87,143.84,47.64295052]
[1741370460962,0.03,143.87,143.85,47.64295052]
[1741370461156,81.53,143.87,143.83,11.24]
[1741370461359,83.6152,143.87,143.78,11.24]
[1741370461578,81.5,143.86,143.79,48.68568933]
[1741370461905,0.03,143.87,143.84,47.64295052]
[1741370462102,0.03,143.87,143.86,47.64295052]
[1741370462406,0.03,143.87,143.86,1.04200951]
[1741370462702,81.5,143.96,143.86,1.04200951]
[1741370462902,1.9052873,143.97,143.92,47.64295052]
[1741370463076,1.9052873,143.97,143.93,11.24]
[1741370463401,1.9052873,143.97,143.93,58.88295052]
[1741370463609,1.9052873,143.97,143.93,65.83075052]
[1741370463768,1.9052873,143.97,143.93,11.24]
[1741370463975,1.9052873,143.97,143.93,65.83075052]
[1741370464199,1.9052873,143.97,143.93,11.24]
[1741370464805,47.67295052,143.94,143.91,11.22]
[1741370465012,0.03,143.94,143.91,11.22]
[1741370465685,0.03,143.94,143.93,47.64295052]
[1741370466307,1.9052873,143.97,143.93,185.34295052]
[1741370466482,1.9052873,143.97,143.96,47.64295052]
[1741370466682,8.73e-05,143.97,143.96,186.38420667]
[1741370466888,0.0299127,144.01,143.97,7.8383]
[1741370467210,0.0299127,144.01,144.0,47.64295052]
[1741370467507,0.0299127,144.01,144.0,1.04096184]
[1741370468009,81.5,144.15,144.0,193.32831236]
[1741370468312,7.7434,144.24,144.12,47.64295052]
[1741370468313,81.5,144.19,144.12,47.64295052]
[1741370468482,81.5,144.19,144.13,11.24]
[1741370468807,47.64295052,144.16,144.13,11.24]
[1741370469273,47.64295052,144.17,144.13,11.24]
[1741370469601,47.64295052,144.16,144.13,11.24]
[1741370469816,81.5,144.23,144.15,47.64295052]
[1741370469983,81.5,144.23,144.13,11.24]
[1741370469984,81.5,144.23,144.14,1.03993927]
[1741370470177,47.64295052,144.17,144.13,11.24]
[1741370470506,0.03,144.24,144.14,1.04029021]
[1741370470805,0.03,144.24,144.2,47.64295052]
[1741370470976,0.03,144.24,144.21,58.88295052]
[1741370471174,0.03,144.24,144.23,47.64295052]
[1741370471974,0.03,144.24,144.22,48.68251262]
[1741370472273,0.03,144.24,144.23,47.64295052]
[1741370472511,1.8752873,144.26,144.23,185.34295052]
[1741370472696,1.8752873,144.26,144.25,47.64295052]
[1741370472897,1.8752873,144.26,144.24,1.03901024]
[1741370473113,1.8752873,144.26,144.25,11.18]
[1741370473287,1.8752873,144.26,144.25,58.82295052]
[1741370473805,1.8752873,144.26,144.25,11.18]
[1741370474012,1.8752873,144.26,144.25,65.75535052]
[1741370474184,1.8752873,144.26,144.25,196.52295052]
[1741370474505,1.8752873,144.26,144.25,11.16]
[1741370474683,1.8752873,144.26,144.25,58.80295052]
[1741370474879,1.8752873,144.26,144.24,12.19924172]
[1741370475109,47.64295052,144.25,144.19,11.16]
[1741370475419,47.64295052,144.23,144.18,161.58]
[1741370475628,1.8752873,144.26,144.18,58.80295052]
[1741370475780,1.8752873,144.26,144.19,48.68269487]
[1741370475976,47.64295052,144.24,144.18,58.80295052]
[1741370476196,47.64295052,144.21,144.17,8.48429156]
[1741370476404,47.64295052,144.18,144.11,3.7579]
[1741370476604,81.5,144.25,144.12,59.80306467]
[1741370476813,81.5,144.25,144.16,47.64295052]
[1741370477020,81.5,144.25,144.13,1.03986912]
[1741370477295,81.5,144.24,144.15,47.64295052]
[1741370477514,47.64295052,144.21,144.16,1.03989736]
[1741370477701,47.64295052,144.21,144.15,47.64295052]
[1741370477903,83.5798,144.24,144.16,1.03996426]
[1741370478112,1.9052873,144.26,144.19,47.64295052]
[1741370478329,3.9848873,144.26,144.2,1.03951613]
[1741370478524,9.1837873,144.26,144.19,11.14]
[1741370478830,47.64295052,144.23,144.19,11.14]
[1741370479329,51.62773782,144.26,144.19,58.78295052]
[1741370479498,47.64295052,144.24,144.19,11.14]
[1741370479701,47.64295052,144.23,144.19,11.14]
[1741370480210,1.9052873,144.26,144.19,11.14]
[1741370480421,47.64295052,144.22,144.19,11.14]
[1741370480734,3.9848873,144.26,144.19,11.14]
[1741370480921,47.64295052,144.22,144.19,11.14]
[1741370481121,47.64295052,144.2,144.19,11.14]
[1741370481310,47.64295052,144.2,144.13,1.03994688]
[1741370481510,47.64295052,144.19,144.14,11.08]
[1741370481734,47.64295052,144.2,144.14,58.72295052]
[1741370481907,47.64295052,144.21,144.15,1.03997596]
[1741370482312,2.08,144.23,144.15,48.68292648]
[1741370482635,47.64295052,144.18,144.14,11.08]
[1741370482837,47.64295052,144.17,144.14,11.08]
[1741370483010,47.64295052,144.18,144.13,11.04]
[1741370483409,81.5,144.22,144.13,11.04]
[1741370483410,47.64295052,144.19,144.13,11.04]
[1741370483638,47.64295052,144.2,144.14,1.04010076]
[1741370483946,81.5,144.25,144.16,47.64295052]
[1741370484134,47.64295052,144.21,144.14,48.68278206]
[1741370484309,47.64295052,144.2,144.14,48.68278206]
[1741370484522,47.64295052,144.2,144.14,1.03983154]
[1741370484720,1.9052873,144.26,144.14,1.03983154]
[1741370484721,1.9052873,144.26,144.18,47.64295052]
[1741370485053,47.64295052,144.24,144.15,1.03959268]
[1741370485235,47.64295052,144.2,144.15,1.03959268]
[1741370485431,47.64295052,144.21,144.14,48.68297414]
[1741370485733,1.9052873,144.26,144.14,138.74002362]
[1741370486132,1.9052873,144.26,144.15,20.79]
[1741370486440,1.9052873,144.26,144.16,1.03944777]
[1741370486851,47.64295052,144.24,144.16,1.03944777]
[1741370487026,47.64295052,144.24,144.18,47.64295052]
[1741370487226,47.64295052,144.23,144.19,10.96]
[1741370487726,1.9052873,144.26,144.2,48.68274529]
[1741370487921,1.9052873,144.26,144.21,48.68249927]
[1741370488224,1.9052873,144.26,144.22,47.64295052]
[1741370488426,1.9052873,144.26,144.25,47.64295052]
[1741370488644,1.9052873,144.26,144.25,186.38209045]
[1741370488828,47.64295052,144.35,144.25,185.34295052]
[1741370489030,47.64295052,144.35,144.28,47.64295052]
[1741370489228,47.64295052,144.32,144.27,1.03901148]
[1741370489444,0.03,144.38,144.28,47.64295052]
[1741370489643,0.03,144.38,144.29,48.68179426]
[1741370489817,47.67295052,144.38,144.32,47.64295052]
[1741370490022,0.03,144.38,144.33,59.64163977]
[1741370490222,47.64295052,144.37,144.33,10.96]
[1741370490439,0.03,144.38,144.33,10.96]
[1741370490634,0.03,144.38,144.28,148.66]
[1741370490838,47.64295052,144.29,144.28,10.96]
[1741370491059,0.03,144.38,144.25,1.03923894]
[1741370491235,47.64295052,144.31,144.25,1.03923894]
[1741370491426,47.64295052,144.3,144.25,1.03923894]
[1741370491626,47.64295052,144.33,144.26,47.64295052]
[1741370491829,0.03,144.38,144.27,21.82903465]
[1741370492131,47.64295052,144.35,144.28,47.64295052]
[1741370492339,47.64295052,144.33,144.29,1.03888984]
[1741370492649,47.64295052,144.33,144.27,47.64295052]
[1741370492826,47.64295052,144.33,144.27,48.68204108]
[1741370493030,47.64295052,144.34,144.27,48.68204108]
[1741370493230,47.64295052,144.33,144.27,1.03909056]
[1741370493446,0.03,144.38,144.27,48.68204108]
[1741370493639,47.64295052,144.37,144.31,47.64295052]
[1741370493950,47.67295052,144.38,144.32,59.62167414]
[1741370494250,47.64295052,144.34,144.32,10.94]
[1741370494434,0.03,144.38,144.32,10.94]
[1741370494625,47.64295052,144.34,144.32,10.94]
[1741370494826,47.64295052,144.33,144.26,10.94]
[1741370495025,47.64295052,144.33,144.27,47.64295052]
[1741370495348,0.03,144.38,144.28,1.0390119]
[1741370495544,47.64295052,144.36,144.3,47.64295052]
[1741370495849,47.64295052,144.37,144.31,48.68175086]
[1741370496048,47.64295052,144.35,144.3,449.7]
[1741370496257,47.64295052,144.37,144.31,1.03888034]
[1741370496437,47.67295052,144.38,144.31,48.68183086]
[1741370496625,47.64295052,144.37,144.31,48.68183086]
[1741370496830,0.03,144.38,144.32,47.64295052]
[1741370497031,47.67295052,144.38,144.33,1.03859176]
[1741370497336,47.67295052,144.38,144.33,11.99859176]
[1741370497537,0.03,144.38,144.33,59.64154228]
[1741370497731,0.03,144.38,144.33,11.99859176]
[1741370497932,0.03,144.38,144.33,10.96]
[1741370498132,47.64295052,144.34,144.3,1.0387945]
[1741370498365,47.64295052,144.34,144.28,10.94]
[1741370498366,47.64295052,144.35,144.29,1.03895126]
[1741370498651,47.67295052,144.38,144.32,47.64295052]
[1741370498853,47.64295052,144.36,144.32,1.03873079]
[1741370499157,47.64295052,144.35,144.3,1.03873079]
[1741370499450,47.64295052,144.37,144.3,138.73873079]
[1741370499653,47.64295052,144.36,144.3,186.38168131]
[1741370499834,47.64295052,144.35,144.29,58.56295052]
[1741370500158,47.64295052,144.33,144.3,1.03883923]
[1741370500459,47.64295052,144.31,144.26,11.95895963]
[1741370500953,47.64295052,144.34,144.28,47.64295052]
[1741370501153,0.03,144.38,144.3,47.64295052]
[1741370501356,47.64295052,144.36,144.31,1.03877484]
[1741370501553,47.64295052,144.32,144.29,137.7]
[1741370501862,47.64295052,144.33,144.27,1.03906158]
[1741370502156,0.03,144.38,144.3,48.6820121]
[1741370502157,47.64295052,144.36,144.3,48.6820121]
[1741370502361,0.03,144.38,144.3,1.03906158]
[1741370502729,47.64295052,144.36,144.3,450.73906158]
[1741370502953,47.64295052,144.37,144.3,497.34295052]
[1741370503179,47.64295052,144.36,144.3,137.7]
[1741370503331,0.03,144.38,144.31,47.64295052]
[1741370503526,0.03,144.38,144.3,138.73881638]
[1741370503527,47.64295052,144.35,144.29,47.64295052]
[1741370503746,47.64295052,144.37,144.31,47.64295052]
[1741370503949,47.64295052,144.37,144.32,1.03874672]
[1741370504160,0.03,144.38,144.3,1.03875736]
[1741370504338,47.64295052,144.35,144.3,1.03875736]
[1741370504658,0.03,144.38,144.31,47.64295052]
[1741370504858,0.03,144.38,144.32,48.68164853]
[1741370505165,0.03,144.38,144.35,47.64295052]
[1741370505338,0.03,144.38,144.32,137.7]
[1741370505668,47.67295052,144.38,144.33,1.03861718]
[1741370506031,0.03,144.38,144.35,47.64295052]
[1741370506239,0.03,144.38,144.36,1.03850009]
[1741370506458,0.03,144.38,144.36,1.03844667]
[1741370506665,0.03,144.38,144.36,1.03852168]
[1741370506833,0.03,144.38,144.37,47.64295052]
[1741370507041,0.03,144.39,144.37,68.48295052]